bitfinex-derivatives/quotes_BTCF0:USTF0_20250711
["timestamp","ask_amount","ask_price","bid_price","bid_amount"]
[1752202888733,1.2639298,116720.0,116710.0,2e-08]
[1752202889639,0.2107627,116710.0,116700.0,0.05510865]
[1752202889823,2.10302188,116710.0,116700.0,0.05510865]
[1752202890128,2.10374189,116710.0,116700.0,0.05510865]
[1752202891029,2.10474189,116710.0,116700.0,0.05510865]
[1752202891629,2.11317326,116710.0,116700.0,0.25442665]
[1752202892030,2.11417326,116710.0,116700.0,0.25442665]
[1752202896036,2.11417326,116710.0,116700.0,0.17309145]
[1752202896234,2.11417326,116710.0,116700.0,0.06880125]
[1752202896532,0.2107774,116700.0,116690.0,5e-08]
[1752202896739,0.92759658,116700.0,116690.0,5e-08]
[1752202897034,0.92831659,116700.0,116690.0,5e-08]
[1752202898633,0.92831659,116700.0,116680.0,0.09198095]
[1752202898634,0.01558,116680.0,116660.0,0.02791486]
[1752202898831,2.03850058,116670.0,116660.0,6e-08]
[1752202899031,2.10378058,116670.0,116660.0,6e-08]
[1752202899629,2.10378058,116670.0,116660.0,0.03040006]
[1752202899829,1.8128614,116670.0,116660.0,0.03040006]
[1752202900028,2.07148058,116670.0,116660.0,0.03040006]
[1752202900334,2.07148058,116670.0,116660.0,0.06270006]
[1752202900548,2.10478058,116670.0,116660.0,0.03040006]
[1752202900731,2.10478058,116670.0,116660.0,0.22971806]
[1752202901540,2.11354129,116670.0,116660.0,0.22971806]
[1752202901741,2.08124129,116670.0,116660.0,0.22971806]
[1752202903041,2.14879529,116670.0,116660.0,0.22971806]
[1752202903656,0.57097458,116670.0,116660.0,0.60228806]
[1752202903833,0.2800554,116670.0,116660.0,0.80428416]
[1752202904027,0.2800554,116670.0,116660.0,0.81164416]
[1752202904028,0.50274058,116670.0,116660.0,0.81164416]
[1752202904230,0.1962414,116670.0,116660.0,0.81164416]
[1752202904531,0.1962414,116670.0,116660.0,1.10256334]
[1752202904532,0.1723814,116670.0,116660.0,1.10256334]
[1752202905338,0.1224814,116670.0,116660.0,1.69056334]
[1752202905536,0.1214814,116670.0,116660.0,1.39964416]
[1752202905737,0.1214814,116670.0,116660.0,1.40468416]
[1752202906640,0.1453414,116670.0,116660.0,1.40468416]
[1752202906942,0.1453414,116670.0,116660.0,1.40668416]
[1752202907255,0.43626058,116670.0,116660.0,1.40668416]
[1752202907636,0.1453414,116670.0,116660.0,1.40468416]
[1752202907843,0.1453414,116670.0,116660.0,1.40768416]
[1752202908639,0.1453414,116670.0,116660.0,1.40764416]
[1752202909338,0.43626058,116670.0,116660.0,1.40764416]
[1752202909847,0.1453414,116670.0,116660.0,0.81964416]
[1752202910043,0.1453414,116670.0,116660.0,1.40764416]
[1752202911038,0.43626058,116670.0,116660.0,1.23624806]
[1752202911341,0.45184058,116670.0,116660.0,1.40764416]
[1752202911735,0.45184058,116670.0,116660.0,0.81964416]
[1752202911942,0.45184058,116670.0,116660.0,1.40764416]
[1752202912243,0.45184058,116670.0,116660.0,0.81964416]
[1752202912439,0.45184058,116670.0,116660.0,1.23620806]
[1752202912744,0.45184058,116670.0,116660.0,0.66086349]
[1752202912943,0.45184058,116670.0,116660.0,1.24882349]
[1752202913443,0.45184058,116670.0,116660.0,0.66086349]
[1752202913843,0.45260058,116670.0,116660.0,0.66086349]
[1752202914254,0.45260058,116670.0,116660.0,0.83225959]
[1752202915448,0.45260058,116670.0,116660.0,0.65350349]
[1752202916044,0.48340058,116670.0,116660.0,0.65350349]
[1752202916934,0.48340058,116670.0,116660.0,0.62310349]
[1752202917334,1.65928058,116670.0,116660.0,0.62310349]
[1752202917544,1.65928058,116670.0,116660.0,0.20731806]
[1752202917841,1.69018058,116670.0,116660.0,0.20731806]
[1752202920345,2.05098058,116670.0,116660.0,0.20731806]
[1752202920743,1.75907451,116670.0,116660.0,0.20731806]
[1752202920949,2.11987451,116670.0,116660.0,0.20731806]
[1752202921538,0.2097061,116660.0,116650.0,0.02726409]
[1752202921739,1.21474446,116660.0,116650.0,0.02726409]
[1752202921938,1.21546447,116660.0,116650.0,0.02726409]
[1752202922546,0.97069286,116660.0,116650.0,0.02726409]
[1752202922751,0.92454529,116660.0,116650.0,0.03126409]
[1752202923642,0.92454529,116660.0,116650.0,0.03726409]
[1752202924245,0.92454529,116660.0,116650.0,0.03426409]
[1752202924552,0.92454529,116660.0,116650.0,0.23358209]
[1752202925746,0.92454529,116660.0,116650.0,0.22958209]
[1752202926057,0.92454529,116660.0,116650.0,0.23058209]
[1752202929247,0.27282611,116660.0,116650.0,0.24235209]
[1752202929449,0.2097061,116660.0,116650.0,1.07284197]
[1752202929759,0.50062528,116660.0,116650.0,0.84692279]
[1752202929955,0.2097061,116660.0,116650.0,0.84692279]
[1752202930158,0.50062528,116660.0,116650.0,0.84692279]
[1752202930652,0.50130528,116660.0,116650.0,0.84692279]
[1752202932767,0.50130528,116660.0,116650.0,0.67551209]
[1752202933062,0.50130528,116660.0,116650.0,0.84692279]
[1752202933859,0.50130528,116660.0,116650.0,0.66815209]
[1752202934058,0.53310528,116660.0,116650.0,0.80696279]
[1752202934659,0.53310528,116660.0,116650.0,0.81432279]
[1752202934963,0.53310528,116660.0,116650.0,0.84592279]
[1752202935768,0.50130528,116660.0,116650.0,0.84592279]
[1752202939562,0.00068,116660.0,116650.0,1.55828997]
[1752202939755,0.2570884,116670.0,116660.0,0.1831658]
[1752202939963,0.2802884,116670.0,116660.0,1.49178498]
[1752202940169,0.2802884,116670.0,116660.0,1.69110298]
[1752202940368,0.2802884,116670.0,116660.0,1.4001838]
[1752202940661,0.2802884,116670.0,116660.0,1.69110298]
[1752202941462,0.2802884,116670.0,116660.0,1.40853244]
[1752202941667,0.2802884,116670.0,116660.0,1.4001838]
[1752202942265,0.57120758,116670.0,116660.0,1.4001838]
[1752202943269,0.57220758,116670.0,116660.0,1.4001838]
[1752202943767,0.57288758,116670.0,116660.0,1.4001838]
[1752202943969,0.2809684,116670.0,116660.0,1.4021838]
[1752202944171,0.2802884,116670.0,116660.0,1.4021838]
[1752202945767,0.57188758,116670.0,116660.0,1.4021838]
[1752202946065,0.2809684,116670.0,116660.0,1.4021838]
[1752202946264,0.2802884,116670.0,116660.0,1.4041838]
[1752202946660,0.57120758,116670.0,116660.0,1.4041838]
[1752202947068,0.57920758,116670.0,116660.0,1.4041838]
[1752202947267,0.59497758,116670.0,116660.0,1.4041838]
[1752202947762,0.59565758,116670.0,116660.0,0.8163438]
[1752202947957,0.59565758,116670.0,116660.0,1.4040638]
[1752202948862,0.59565758,116670.0,116660.0,1.4030638]
[1752202949570,0.59565758,116670.0,116660.0,0.8143438]
[1752202949770,0.59565758,116670.0,116660.0,1.4040638]
[1752202950071,0.57988758,116670.0,116660.0,1.4040638]
[1752202951074,0.53704018,116670.0,116660.0,1.4040638]
[1752202951265,0.53704018,116670.0,116660.0,1.69498298]
[1752202951266,0.246121,116670.0,116660.0,1.69498298]
[1752202951465,0.245441,116670.0,116660.0,1.69498298]
[1752202951673,0.245441,116670.0,116660.0,1.69398298]
[1752202952365,0.245441,116670.0,116660.0,1.69298298]
[1752202952562,0.2025948,116670.0,116660.0,1.69498298]
[1752202952966,0.1793948,116670.0,116660.0,1.69498298]
[1752202953171,0.008,116670.0,116660.0,1.69498298]
[1752202953366,0.1793811,116670.0,116660.0,1.69498298]
[1752202953571,0.1793811,116670.0,116660.0,1.71306755]
[1752202955168,0.1793811,116670.0,116660.0,1.73594816]
[1752202955874,0.1793811,116670.0,116660.0,1.37514816]
[1752202956175,0.1793811,116670.0,116660.0,2.09674816]
[1752202956975,0.1793811,116670.0,116660.0,2.09672921]
[1752202958073,0.008,116670.0,116660.0,2.09672921]
[1752202958272,0.3647281,116690.0,116680.0,0.00081]
[1752202958471,0.33214811,116690.0,116680.0,1.41204558]
[1752202958672,0.62234728,116690.0,116680.0,1.1211264]
[1752202958873,0.3321081,116690.0,116680.0,1.1517264]
[1752202959072,0.62302728,116690.0,116680.0,1.1517264]
[1752202959274,0.62302728,116690.0,116680.0,1.5125264]
[1752202959470,0.62402728,116690.0,116680.0,1.5125264]
[1752202959669,0.62502728,116690.0,116680.0,0.9248864]
[1752202959872,0.62502728,116690.0,116680.0,1.5124864]
[1752202960180,0.62502728,116690.0,116680.0,1.7118044]
[1752202960477,0.62502728,116690.0,116680.0,1.78149134]
[1752202960970,0.62402728,116690.0,116680.0,1.7128044]
[1752202961772,0.62302728,116690.0,116680.0,1.7138044]
[1752202962677,0.3321081,116690.0,116680.0,1.7158044]
[1752202962883,0.62234728,116690.0,116680.0,1.7158044]
[1752202963384,0.62302728,116690.0,116680.0,1.7158044]
[1752202965385,0.62302728,116690.0,116680.0,1.7157644]
[1752202965585,0.65372728,116690.0,116680.0,1.78427704]
[1752202965884,0.3628081,116690.0,116680.0,1.78427704]
[1752202966089,0.65304728,116690.0,116680.0,1.78427704]
[1752202966292,0.65372728,116690.0,116680.0,1.78427704]
[1752202966590,0.65372728,116690.0,116680.0,1.78227704]
[1752202967290,0.65372728,116690.0,116680.0,1.78327704]
[1752202967993,0.65372728,116690.0,116680.0,1.78227704]
[1752202968289,0.65372728,116690.0,116680.0,1.78427704]
[1752202969195,0.65372728,116690.0,116680.0,1.19671704]
[1752202969492,0.65372728,116690.0,116680.0,1.78423704]
[1752202970493,0.65372728,116690.0,116680.0,1.78072704]
[1752202971194,0.65372728,116690.0,116680.0,1.77972704]
[1752202971492,0.65372728,116690.0,116680.0,1.78172704]
[1752202972285,0.65372728,116690.0,116680.0,1.78372704]
[1752202973092,0.65372728,116690.0,116680.0,1.19080704]
[1752202973295,0.65372728,116690.0,116680.0,1.77828704]
[1752202973697,0.65372728,116690.0,116680.0,1.19080704]
[1752202973899,0.65372728,116690.0,116680.0,1.77824704]
[1752202974097,0.65372728,116690.0,116680.0,1.18880704]
[1752202974395,0.3628081,116690.0,116680.0,1.77724704]
[1752202974589,0.3621281,116690.0,116680.0,1.77724704]
[1752202974791,0.65304728,116690.0,116680.0,1.77724704]
[1752202974987,0.65304728,116690.0,116680.0,1.77824704]
[1752202975396,0.65372728,116690.0,116680.0,0.99143064]
[1752202975598,0.65372728,116690.0,116680.0,1.75023704]
[1752202975799,0.65372728,116690.0,116680.0,1.57887064]
[1752202975990,0.65372728,116690.0,116680.0,1.75223714]
[1752202976188,0.65372728,116690.0,116680.0,1.58087064]
[1752202976399,0.65372728,116690.0,116680.0,1.75223714]
[1752202976594,0.3638081,116690.0,116680.0,1.75023714]
[1752202976793,0.65404728,116690.0,116680.0,1.75023714]
[1752202976994,0.65472728,116690.0,116680.0,1.75023714]
[1752202977197,0.65372728,116690.0,116680.0,1.75023714]
[1752202978099,0.65372728,116690.0,116680.0,1.16279714]
[1752202978299,0.65372728,116690.0,116680.0,1.77311775]
[1752202978897,0.65372728,116690.0,116680.0,1.01431125]
[1752202979103,1.30544646,116690.0,116680.0,0.201318]
[1752202979398,1.30544646,116690.0,116670.0,0.02288061]
[1752202979399,0.1875911,116670.0,116660.0,0.40174623]
[1752202979595,1.67657028,116670.0,116660.0,0.40174623]
[1752202979801,1.70849029,116670.0,116660.0,0.01806562]
[1752202979993,1.70849029,116670.0,116660.0,0.02288061]
[1752202980193,0.2108258,116660.0,116650.0,0.08065734]
[1752202980395,0.53294498,116660.0,116650.0,0.0501447]
[1752202980601,0.89442498,116660.0,116650.0,0.02726409]
[1752202981293,0.53362498,116660.0,116650.0,0.02726409]
[1752202981493,0.53462498,116660.0,116650.0,0.02726409]
[1752202982000,0.54308463,116660.0,116650.0,0.02726409]
[1752202982599,0.57528463,116660.0,116650.0,0.22658209]
[1752202984895,0.57628463,116660.0,116650.0,0.22658209]
[1752202985294,0.93708463,116660.0,116650.0,0.22658209]
[1752202985694,0.9832322,116660.0,116650.0,0.22658209]
[1752202986291,0.93708463,116660.0,116650.0,0.22658209]
[1752202987506,0.2108405,116650.0,116640.0,0.0561259]
[1752202987701,2.02971886,116650.0,116640.0,0.0561259]
[1752202987903,2.02971886,116650.0,116630.0,0.02698353]
[1752202987904,0.2108552,116640.0,116630.0,0.02698353]
[1752202988204,0.85469356,116640.0,116630.0,0.02698353]
[1752202988393,0.56445438,116640.0,116630.0,0.40402353]
[1752202988597,0.56445438,116640.0,116630.0,0.04322353]
[1752202989397,0.53295438,116640.0,116630.0,0.59894343]
[1752202989606,0.50245438,116640.0,116630.0,0.66214343]
[1752202990700,0.50245438,116640.0,116630.0,0.86146143]
[1752202990896,0.2115352,116640.0,116630.0,0.86146143]
[1752202991100,0.2108552,116640.0,116630.0,0.86146143]
[1752202991706,0.1946452,116640.0,116630.0,1.15038061]
[1752202992596,0.1946452,116640.0,116630.0,0.85946143]
[1752202993602,0.1946452,116640.0,116630.0,0.86046143]
[1752202994102,0.1714252,116640.0,116630.0,1.15138061]
[1752202995304,0.2985602,116650.0,116640.0,0.1714252]
[1752202995496,0.2823502,116650.0,116640.0,1.51392438]
[1752202998808,0.2823502,116650.0,116640.0,1.51492438]
[1752202999207,0.1966422,116650.0,116640.0,1.51492438]
[1752202999611,0.1966422,116650.0,116640.0,1.2240052]
[1752203000211,0.1966422,116650.0,116640.0,1.4233232]
[1752203000411,0.1966422,116650.0,116640.0,1.71424238]
[1752203001115,0.2128522,116650.0,116640.0,1.71424238]
[1752203001414,0.50377138,116650.0,116640.0,1.4234832]
[1752203001910,0.50377138,116650.0,116640.0,1.4254832]
[1752203002608,0.50377138,116650.0,116640.0,1.4223232]
[1752203002809,0.50445138,116650.0,116640.0,0.8343632]
[1752203003115,0.50445138,116650.0,116640.0,1.4224432]
[1752203003817,0.50445138,116650.0,116640.0,0.8343632]
[1752203004017,0.50445138,116650.0,116640.0,1.4223632]
[1752203004616,0.50445138,116650.0,116640.0,0.662938]
[1752203004817,0.50445138,116650.0,116640.0,1.4252834]
[1752203005405,0.50445138,116650.0,116640.0,1.4242834]
[1752203005611,0.50445138,116650.0,116640.0,1.4222834]
[1752203006514,0.50445138,116650.0,116640.0,0.85724401]
[1752203006717,0.50445138,116650.0,116640.0,1.4221634]
[1752203007013,0.50445138,116650.0,116640.0,1.44504401]
[1752203008011,0.50445138,116650.0,116640.0,0.62973861]
[1752203008211,0.53495138,116650.0,116640.0,0.59923861]
[1752203008405,1.74199138,116650.0,116640.0,0.59923861]
[1752203008616,1.74199138,116650.0,116640.0,0.576358]
[1752203008814,1.4510722,116650.0,116640.0,0.576358]
[1752203009117,2.03291056,116650.0,116640.0,0.199318]
[1752203009416,2.10479138,116650.0,116640.0,0.199318]
[1752203011716,1.74399138,116650.0,116640.0,0.199318]
[1752203013616,2.10479138,116650.0,116640.0,0.199318]
[1752203013816,1.81278106,116650.0,116640.0,0.199318]
[1752203014019,2.17358106,116650.0,116640.0,0.199318]
[1752203014214,1.81278106,116650.0,116640.0,0.199318]
[1752203014713,2.17358106,116650.0,116640.0,0.199318]
[1752203030925,1.81278106,116650.0,116640.0,0.560118]
[1752203031224,1.75068106,116650.0,116640.0,0.606318]
[1752203031416,1.75068106,116650.0,116640.0,0.670018]
[1752203032428,1.74968106,116650.0,116640.0,0.670018]
[1752203032628,1.75068106,116650.0,116640.0,0.670018]
[1752203033028,1.75068106,116650.0,116640.0,0.641928]
[1752203033823,1.74968106,116650.0,116640.0,0.641928]
[1752203034522,1.75068106,116650.0,116640.0,0.641928]
[1752203035629,0.28432188,116650.0,116640.0,0.641928]
[1752203035818,0.2155322,116650.0,116640.0,0.668578]
[1752203036019,0.50645138,116650.0,116640.0,0.668578]
[1752203036527,0.50545138,116650.0,116640.0,0.668578]
[1752203037230,0.50445138,116650.0,116640.0,0.668578]
[1752203037631,0.50545138,116650.0,116640.0,0.668578]
[1752203038028,0.50477138,116650.0,116640.0,0.668578]
[1752203038231,0.50577138,116650.0,116640.0,0.668578]
[1752203038823,0.50477138,116650.0,116640.0,0.668578]
[1752203039023,0.50577138,116650.0,116640.0,0.668578]
[1752203041326,0.50649139,116650.0,116640.0,0.668578]
[1752203045036,0.50549139,116650.0,116640.0,0.668578]
[1752203045229,0.50649139,116650.0,116640.0,0.668578]
[1752203045832,0.50549139,116650.0,116640.0,0.668578]
[1752203046031,0.50649139,116650.0,116640.0,0.668578]
[1752203046839,0.50549139,116650.0,116640.0,0.668578]
[1752203047041,0.50649139,116650.0,116640.0,0.668578]
[1752203047532,0.50549139,116650.0,116640.0,0.668578]
[1752203047726,0.50649139,116650.0,116640.0,0.668578]
[1752203047926,0.50649139,116650.0,116640.0,0.69153693]
[1752203048437,0.50649139,116650.0,116640.0,0.668578]
[1752203048937,0.50649139,116650.0,116640.0,0.69153693]
[1752203049139,0.50649139,116650.0,116640.0,0.668578]
[1752203050141,0.21557221,116650.0,116640.0,0.668578]
[1752203050329,0.2148522,116650.0,116640.0,0.668578]
[1752203050526,0.50577138,116650.0,116640.0,0.668578]
[1752203050731,0.1754107,116650.0,116640.0,1.13092258]
[1752203050935,0.1754107,116650.0,116640.0,1.71856258]
[1752203050936,0.00476,116650.0,116640.0,1.71856258]
[1752203051141,0.1754107,116650.0,116640.0,1.32534551]
[1752203051334,0.1754107,116650.0,116640.0,1.91298551]
[1752203051536,0.004,116650.0,116640.0,1.91298551]
[1752203051743,0.004,116650.0,116640.0,1.74152151]
[1752203052041,0.003,116650.0,116640.0,1.74252151]
[1752203052235,0.1744107,116650.0,116640.0,1.74252151]
[1752203052440,0.003,116650.0,116640.0,1.74252151]
[1752203052641,0.1744107,116650.0,116640.0,1.74252151]
[1752203053042,0.003,116650.0,116640.0,1.74252151]
[1752203053343,0.003,116650.0,116640.0,1.75017449]
[1752203053531,0.002,116650.0,116640.0,1.75017449]
[1752203053839,0.002,116650.0,116640.0,1.75217449]
[1752203054339,0.002,116650.0,116640.0,1.46125531]
[1752203054640,0.002,116650.0,116640.0,1.75217449]
[1752203055437,0.1734107,116650.0,116640.0,1.46125531]
[1752203055635,0.1734107,116650.0,116640.0,1.75217449]
[1752203056147,0.1734107,116650.0,116640.0,1.75117449]
[1752203056443,0.1734107,116650.0,116640.0,1.75317449]
[1752203056837,0.1734107,116650.0,116640.0,1.75369449]
[1752203057141,0.1734107,116650.0,116640.0,1.75269449]
[1752203057342,0.49034988,116650.0,116640.0,1.46181531]
[1752203057542,0.49102988,116650.0,116640.0,1.46181531]
[1752203058037,0.50941988,116650.0,116640.0,0.671578]
[1752203058343,0.50941988,116650.0,116640.0,0.63896245]
[1752203058537,0.57191988,116650.0,116640.0,0.63896245]
[1752203059043,0.57191988,116650.0,116640.0,0.60616245]
[1752203059238,0.57191988,116650.0,116640.0,0.60516245]
[1752203059837,0.57191988,116650.0,116640.0,0.582228]
[1752203060042,0.57191988,116650.0,116640.0,0.580228]
[1752203060435,0.2810007,116650.0,116640.0,0.580228]
[1752203060637,0.57123988,116650.0,116640.0,0.578228]
[1752203060834,0.57123988,116650.0,116640.0,0.604878]
[1752203061141,0.54171988,116650.0,116640.0,0.7763034]
[1752203061338,0.54171988,116650.0,116640.0,0.8404034]
[1752203061539,0.2185007,116650.0,116640.0,0.8404034]
[1752203061743,0.2178207,116650.0,116640.0,1.14908203]
[1752203061949,0.1994307,116650.0,116640.0,1.14908203]
[1752203062643,0.1994307,116650.0,116640.0,0.85816285]
[1752203062838,0.1734107,116650.0,116640.0,1.14908203]
[1752203063041,0.1734107,116650.0,116640.0,1.15008203]
[1752203063653,0.1734107,116650.0,116640.0,0.85916285]
[1752203063843,0.1734107,116650.0,116640.0,0.86116285]
[1752203064044,0.1734107,116650.0,116640.0,1.17501648]
[1752203069648,0.1734107,116650.0,116640.0,0.8840973]
[1752203069951,0.1734107,116650.0,116640.0,1.17501648]
[1752203074153,0.1734107,116650.0,116640.0,1.18269394]
[1752203075554,0.1734107,116650.0,116640.0,0.65624936]
[1752203075555,0.51017988,116650.0,116640.0,0.65624936]
[1752203075857,1.52103988,116650.0,116640.0,0.202318]
[1752203076050,1.16095989,116650.0,116640.0,0.202318]
[1752203076249,1.16095989,116650.0,116640.0,0.220848]
[1752203076451,1.16099989,116650.0,116640.0,0.609618]
[1752203076650,1.16099989,116650.0,116640.0,0.248818]
[1752203076954,0.57419989,116650.0,116640.0,0.7780434]
[1752203077155,0.28328071,116650.0,116640.0,0.7780434]
[1752203077357,0.57347988,116650.0,116640.0,0.79626996]
[1752203077855,0.57419989,116650.0,116640.0,0.79626996]
[1752203078055,0.57319989,116650.0,116640.0,0.79626996]
[1752203078461,0.57219989,116650.0,116640.0,0.79626996]
[1752203078853,0.25038071,116650.0,116640.0,1.08718914]
[1752203079154,0.2496607,116650.0,116640.0,1.15228914]
[1752203079655,0.2006407,116650.0,116640.0,1.15228914]
[1752203080056,0.2192607,116650.0,116640.0,0.86136996]
[1752203080556,0.51017988,116650.0,116640.0,0.86136996]
[1752203080750,0.54105988,116650.0,116640.0,0.86336996]
[1752203080950,0.54105988,116650.0,116640.0,0.86436996]
[1752203081754,0.54105988,116650.0,116640.0,0.86336996]
[1752203082350,0.54105988,116650.0,116640.0,1.45232996]
[1752203082958,0.57335988,116650.0,116640.0,1.45032996]
[1752203083458,0.57335988,116650.0,116640.0,1.45132996]
[1752203083859,0.57335988,116650.0,116640.0,1.45332996]
[1752203085261,0.2824407,116650.0,116640.0,0.59987456]
[1752203085460,0.57267988,116650.0,116640.0,0.62784456]
[1752203085857,0.57335988,116650.0,116640.0,0.62784456]
[1752203086762,0.57335988,116650.0,116640.0,0.62684456]
[1752203086956,0.57335988,116650.0,116640.0,1.21420456]
[1752203087462,0.57335988,116650.0,116640.0,1.23715818]
[1752203089057,0.57335988,116650.0,116640.0,1.40858358]
[1752203089559,0.57335988,116650.0,116640.0,1.23715818]
[1752203089960,0.57335988,116650.0,116640.0,1.40858358]
[1752203090664,0.57335988,116650.0,116640.0,1.23715818]
[1752203093565,0.2824407,116650.0,116640.0,1.23717342]
[1752203093765,0.57267988,116650.0,116640.0,1.23717342]
[1752203093966,0.57267988,116650.0,116640.0,1.40859882]
[1752203094167,0.57267988,116650.0,116640.0,1.23717342]
[1752203094662,0.57335988,116650.0,116640.0,1.23717342]
[1752203095268,0.57335988,116650.0,116640.0,1.40859882]
[1752203095460,0.57335988,116650.0,116640.0,1.23717342]
[1752203097067,0.57335988,116650.0,116640.0,0.64781342]
[1752203099867,0.57335988,116650.0,116640.0,0.68011342]
[1752203100166,0.2824407,116650.0,116640.0,0.68011342]
[1752203100367,0.57267988,116650.0,116640.0,0.68011342]
[1752203101472,0.57267988,116650.0,116640.0,0.61984342]
[1752203101769,0.57335988,116650.0,116640.0,0.64706342]
[1752203102764,0.57335988,116650.0,116640.0,0.67706342]
[1752203102968,0.2501407,116650.0,116640.0,0.84848882]
[1752203103173,0.2192607,116650.0,116640.0,1.139408]
[1752203103362,0.2192607,116650.0,116640.0,1.169608]
[1752203103561,0.2192607,116650.0,116640.0,0.87868882]
[1752203104372,0.2192607,116650.0,116640.0,1.169608]
[1752203104761,0.2192607,116650.0,116640.0,0.87868882]
[1752203106372,0.2192607,116650.0,116640.0,0.87968882]
[1752203107174,0.2192607,116650.0,116640.0,0.87868882]
[1752203108072,0.51017988,116650.0,116640.0,0.87868882]
[1752203108274,0.51017988,116650.0,116640.0,1.46692882]
[1752203108474,0.51085988,116650.0,116640.0,1.46692882]
[1752203109771,0.51085988,116650.0,116640.0,1.46792882]
[1752203110075,0.2199407,116650.0,116640.0,1.46992882]
[1752203110273,0.51017988,116650.0,116640.0,1.47757187]
[1752203110474,0.51089989,116650.0,116640.0,1.46995215]
[1752203110980,0.21998071,116650.0,116640.0,1.47757187]
[1752203111175,0.2192607,116650.0,116640.0,1.47757187]
[1752203111777,0.2192607,116650.0,116640.0,1.46995401]
[1752203112178,0.2192607,116650.0,116640.0,1.50056592]
[1752203112479,0.2192607,116650.0,116640.0,1.50056913]
[1752203112869,0.2192607,116650.0,116640.0,1.47757187]
[1752203114576,0.51017988,116650.0,116640.0,1.47757187]
[1752203114782,0.51085988,116650.0,116640.0,1.50056939]
[1752203114982,0.51085988,116650.0,116640.0,1.47757187]
[1752203115284,0.51085988,116650.0,116640.0,1.50056952]
[1752203115680,0.51085988,116650.0,116640.0,0.74090412]
[1752203115879,0.51085988,116650.0,116640.0,1.46955761]
[1752203116081,0.51085988,116650.0,116640.0,1.47717187]
[1752203116682,0.51085988,116650.0,116640.0,1.49917093]
[1752203117582,0.51085988,116650.0,116640.0,1.47617187]
[1752203117778,0.51085988,116650.0,116640.0,1.49917176]
[1752203118283,0.51085988,116650.0,116640.0,1.47617187]
[1752203119079,0.51085988,116650.0,116640.0,1.30574647]
[1752203119283,0.51085988,116650.0,116640.0,1.30566647]
[1752203119679,0.51085988,116650.0,116640.0,1.32866659]
[1752203119883,0.51085988,116650.0,116640.0,1.30266647]
[1752203120276,0.51085988,116650.0,116640.0,1.4970918]
[1752203120884,0.51085988,116650.0,116640.0,1.3256664]
[1752203121283,0.51085988,116650.0,116640.0,1.30266647]
[1752203121884,0.51085988,116650.0,116640.0,1.32566653]
[1752203122595,0.51085988,116650.0,116640.0,1.47409187]
[1752203123887,0.2199407,116650.0,116640.0,1.47409187]
[1752203124082,0.1734107,116650.0,116640.0,1.76501105]
[1752203124684,0.1986407,116650.0,116640.0,1.76501105]
[1752203125179,0.50643988,116650.0,116640.0,1.30266647]
[1752203125581,0.50643988,116650.0,116640.0,1.27205456]
[1752203125885,0.50711988,116650.0,116640.0,1.29505423]
[1752203126186,0.50711988,116650.0,116640.0,1.29605423]
[1752203126686,0.50711988,116650.0,116640.0,0.70729423]
[1752203126988,0.50711988,116650.0,116640.0,1.29705423]
[1752203127189,0.53741988,116650.0,116640.0,1.29705423]
[1752203127684,0.53741988,116650.0,116640.0,1.29505423]
[1752203128880,0.46488394,116650.0,116640.0,1.29505423]
[1752203130087,0.43458394,116650.0,116640.0,1.68486287]
[1752203130587,0.43458394,116650.0,116640.0,1.46647963]
[1752203130889,0.43458394,116650.0,116640.0,1.68486287]
[1752203131193,0.43458394,116650.0,116640.0,1.51343747]
[1752203131387,0.43458394,116650.0,116640.0,1.29505423]
[1752203131589,0.43458394,116650.0,116640.0,1.46647963]
[1752203131985,0.43458394,116650.0,116640.0,1.68486287]
[1752203133190,0.46528394,116650.0,116640.0,1.68486287]
[1752203136187,0.46528394,116650.0,116640.0,1.51343747]
[1752203136388,0.46528394,116650.0,116640.0,1.29505423]
[1752203137195,0.46528394,116650.0,116640.0,1.29501423]
[1752203138291,0.46528394,116650.0,116640.0,1.47405187]
[1752203138683,0.46528394,116650.0,116640.0,1.49705489]
[1752203139493,0.46528394,116650.0,116640.0,1.69243511]
[1752203139994,0.46528394,116650.0,116640.0,1.52100971]
[1752203140394,0.46528394,116650.0,116640.0,1.30262647]
[1752203141196,0.46528394,116650.0,116640.0,1.32563396]
[1752203142088,0.46528394,116650.0,116640.0,0.71490647]
[1752203142296,0.46528394,116650.0,116640.0,1.30262647]
[1752203142495,0.46528394,116650.0,116640.0,1.3256375]
[1752203143298,0.46528394,116650.0,116640.0,1.47405187]
[1752203143792,0.46528394,116650.0,116640.0,1.49706355]
[1752203143998,0.2469007,116650.0,116640.0,1.49706355]
[1752203144298,0.46460394,116650.0,116640.0,1.49706355]
[1752203144596,0.46460394,116650.0,116640.0,1.47405187]
[1752203144797,0.46528394,116650.0,116640.0,1.47405187]
[1752203144995,0.46528394,116650.0,116640.0,1.69243511]
[1752203146100,0.46528394,116650.0,116640.0,1.52100971]
[1752203146598,0.46528394,116650.0,116640.0,1.30262647]
[1752203147398,0.46528394,116650.0,116640.0,1.47405187]
[1752203147601,0.46528394,116650.0,116640.0,1.30262647]
[1752203148502,0.46528394,116650.0,116640.0,1.47405187]
[1752203148900,0.46528394,116650.0,116640.0,1.30262647]
[1752203149301,0.46528394,116650.0,116640.0,1.32565772]
[1752203149705,0.46528394,116650.0,116640.0,1.30262647]
[1752203150003,0.46528394,116650.0,116640.0,1.47405187]
[1752203150199,0.46528394,116650.0,116640.0,1.30262647]
[1752203150701,0.46528394,116650.0,116640.0,1.47405187]
[1752203151105,0.46528394,116650.0,116640.0,1.69243511]
[1752203152289,0.46528394,116650.0,116640.0,1.47405187]
[1752203152492,0.46528394,116650.0,116640.0,1.69243511]
[1752203153402,0.46528394,116650.0,116640.0,1.69239511]
[1752203155408,0.43458394,116650.0,116640.0,1.69239511]
[1752203155607,0.2162007,116650.0,116640.0,1.69239511]
[1752203155808,0.43390394,116650.0,116640.0,1.69239511]
[1752203156203,0.43458394,116650.0,116640.0,1.69239511]
[1752203156404,0.1740907,116650.0,116640.0,1.91077835]
[1752203156608,0.39179394,116650.0,116640.0,1.91077835]
[1752203156805,0.39179394,116650.0,116640.0,1.69239511]
[1752203157008,0.1734107,116650.0,116640.0,1.69239511]
[1752203157202,0.41576394,116650.0,116640.0,1.69239511]
[1752203157609,0.41576394,116650.0,116640.0,1.69439511]
[1752203158510,0.39179394,116650.0,116640.0,1.91277835]
[1752203158706,0.39179394,116650.0,116640.0,1.91377835]
[1752203158909,0.1734107,116650.0,116640.0,1.91377835]
[1752203159212,0.39179394,116650.0,116640.0,1.91377835]
[1752203160112,0.1734107,116650.0,116640.0,1.91377835]
[1752203160312,0.39179394,116650.0,116640.0,1.91377835]
[1752203161313,0.39179394,116650.0,116640.0,1.69539511]
[1752203161508,0.39179394,116650.0,116640.0,1.91377835]
[1752203162116,0.39179394,116650.0,116640.0,1.69539511]
[1752203162321,0.1734107,116650.0,116640.0,1.69539511]
[1752203162609,0.43183394,116650.0,116640.0,1.30558647]
[1752203162910,0.43183394,116650.0,116640.0,0.71790647]
[1752203163115,0.43251394,116650.0,116640.0,1.52392971]
[1752203163410,0.46481394,116650.0,116640.0,1.30554647]